[Event "Open NK Rapid 2025"]
[Site "Helmond, Netherlands"]
[Date "2025.05.03"]
[Round "7.13"]
[White "Nies, Levi"]
[Black "Smeets, Kobe"]
[Result "0-1"]
[TimeControl "15+5"]
[WhiteFideId "1061275"]
[BlackFideId "1063910"]
[WhiteElo "1828"]
[BlackElo "2192"]

1. d4 {[%clk 00:15:06]} {[%emt 00:00:04]} d5 {[%clk 00:13:26]} {[%emt
00:01:45]} 2. e4 {[%clk 00:15:09]} {[%emt 00:00:02]} dxe4 {[%clk 00:13:20]}
{[%emt 00:00:10]} 3. Nc3 {[%clk 00:15:12]} {[%emt 00:00:01]} Nf6 {[%clk
00:13:20]} {[%emt 00:00:06]} 4. Bg5 {[%clk 00:15:15]} {[%emt 00:00:01]} Nbd7
{[%clk 00:12:39]} {[%emt 00:00:47]} 5. Bc4 {[%clk 00:15:18]} {[%emt 00:00:02]}
b6 {[%clk 00:12:10]} {[%emt 00:00:34]} 6. Qe2 {[%clk 00:14:00]} {[%emt
00:01:23]} Bb7 {[%clk 00:11:51]} {[%emt 00:00:24]} 7. O-O-O {[%clk 00:12:46]}
{[%emt 00:01:19]} h6 {[%clk 00:11:52]} {[%emt 00:00:04]} 8. Bh4 {[%clk
00:12:40]} {[%emt 00:00:11]} a6 {[%clk 00:10:55]} {[%emt 00:01:02]} 9. d5
{[%clk 00:10:39]} {[%emt 00:02:06]} b5 {[%clk 00:10:19]} {[%emt 00:00:41]} 10.
Bb3 {[%clk 00:10:39]} {[%emt 00:00:06]} g5 {[%clk 00:09:33]} {[%emt 00:00:50]}
11. Bg3 {[%clk 00:10:30]} {[%emt 00:00:14]} Nc5 {[%clk 00:09:37]} {[%emt
00:00:01]} 12. Nxb5 {[%clk 00:08:53]} {[%emt 00:01:41]} axb5 {[%clk 00:09:30]}
{[%emt 00:00:12]} 13. Qxb5+ {[%clk 00:08:56]} {[%emt 00:00:02]} Nfd7 {[%clk
00:09:34]} {[%emt 00:00:01]} 14. h4 {[%clk 00:02:51]} {[%emt 00:06:10]} Bg7
{[%clk 00:08:57]} {[%emt 00:00:41]} 15. Nh3 {[%clk 00:01:46]} {[%emt 00:01:11]}
Ba6 {[%clk 00:07:25]} {[%emt 00:01:37]} 16. Qc6 {[%clk 00:01:44]} {[%emt
00:00:07]} gxh4 {[%clk 00:05:59]} {[%emt 00:01:30]} 17. Bxh4 {[%clk 00:00:13]}
{[%emt 00:01:37]} Rb8 {[%clk 00:05:40]} {[%emt 00:00:24]} 18. d6 {[%clk
00:00:12]} {[%emt 00:00:07]} cxd6 {[%clk 00:05:13]} {[%emt 00:00:32]} 19. Rxd6
{[%clk 00:00:14]} {[%emt 00:00:03]} Nxb3+ {[%clk 00:04:30]} {[%emt 00:00:48]}
20. axb3 {[%clk 00:00:14]} {[%emt 00:00:06]} Rb6 {[%clk 00:04:34]} 21. Rhd1
{[%clk 00:00:12]} {[%emt 00:00:08]} Rxc6 {[%clk 00:04:34]} {[%emt 00:00:05]} 22.
Rxd7 {[%clk 00:00:10]} {[%emt 00:00:06]} Qxd7 {[%clk 00:04:37]} {[%emt
00:00:03]} 23. Rxd7 {[%clk 00:00:14]} {[%emt 00:00:01]} 0-1

[Event "Open NK Rapid 2025"]
[Site "Helmond, Netherlands"]
[Date "2025.05.03"]
[Round "7.14"]
[White "Labruyere, Roger"]
[Black "Madularea, David"]
[Result "1-0"]
[TimeControl "15+5"]
[WhiteFideId "1059505"]
[BlackFideId "1070215"]
[WhiteElo "2117"]
[BlackElo "1921"]

1. e4 {[%clk 00:13:16]} {[%emt 00:01:53]} d6 {[%clk 00:15:06]} {[%emt
00:00:04]} 2. d4 {[%clk 00:13:20]} {[%emt 00:00:01]} Nf6 {[%clk 00:15:10]}
{[%emt 00:00:02]} 3. Nc3 {[%clk 00:13:24]} {[%emt 00:00:01]} e6 {[%clk
00:15:14]} 4. Nf3 {[%clk 00:13:28]} {[%emt 00:00:01]} Nc6 {[%clk 00:15:16]}
{[%emt 00:00:03]} 5. Be2 {[%clk 00:13:29]} {[%emt 00:00:03]} Be7 {[%clk
00:15:20]} {[%emt 00:00:01]} 6. O-O {[%clk 00:13:33]} {[%emt 00:00:02]} O-O
{[%clk 00:15:22]} {[%emt 00:00:03]} 7. h3 {[%clk 00:13:34]} {[%emt 00:00:03]}
a6 {[%clk 00:15:14]} {[%emt 00:00:13]} 8. Be3 {[%clk 00:13:33]} {[%emt
00:00:06]} b5 {[%clk 00:15:14]} {[%emt 00:00:06]} 9. d5 {[%clk 00:13:31]}
{[%emt 00:00:07]} exd5 {[%clk 00:15:06]} {[%emt 00:00:13]} 10. exd5 {[%clk
00:13:33]} {[%emt 00:00:03]} Ne5 {[%clk 00:15:02]} {[%emt 00:00:08]} 11. Nxe5
{[%clk 00:13:24]} {[%emt 00:00:14]} dxe5 {[%clk 00:15:05]} {[%emt 00:00:02]} 12.
Bf3 {[%clk 00:13:27]} {[%emt 00:00:02]} Qd6 {[%clk 00:12:46]} {[%emt 00:02:24]}
13. a3 {[%clk 00:13:18]} {[%emt 00:00:15]} Bf5 {[%clk 00:12:30]} {[%emt
00:00:21]} 14. b4 {[%clk 00:13:21]} {[%emt 00:00:02]} e4 {[%clk 00:12:05]}
{[%emt 00:00:30]} 15. Be2 {[%clk 00:13:24]} Rad8 {[%clk 00:11:55]} {[%emt
00:00:15]} 16. Qd2 {[%clk 00:11:55]} {[%emt 00:01:34]} Nxd5 {[%clk 00:11:27]}
{[%emt 00:00:34]} 17. Nxd5 {[%clk 00:11:58]} {[%emt 00:00:02]} Qxd5 {[%clk
00:11:28]} {[%emt 00:00:03]} 18. Qxd5 {[%clk 00:12:01]} {[%emt 00:00:02]} Rxd5
{[%clk 00:11:30]} {[%emt 00:00:03]} 19. c4 {[%clk 00:12:05]} {[%emt 00:00:01]}
bxc4 {[%clk 00:08:32]} {[%emt 00:03:03]} 20. Bxc4 {[%clk 00:12:09]} {[%emt
00:00:02]} Rd6 {[%clk 00:08:33]} {[%emt 00:00:04]} 21. Bc5 {[%clk 00:12:12]}
{[%emt 00:00:02]} Rd7 {[%clk 00:08:37]} {[%emt 00:00:01]} 22. Bxe7 {[%clk
00:11:22]} {[%emt 00:00:55]} Rxe7 {[%clk 00:08:41]} 23. Bxa6 {[%clk 00:11:26]}
{[%emt 00:00:02]} Bd7 {[%clk 00:06:10]} {[%emt 00:02:35]} 24. a4 {[%clk
00:11:16]} {[%emt 00:00:15]} Rb8 {[%clk 00:06:14]} {[%emt 00:00:02]} 25. b5
{[%clk 00:11:13]} {[%emt 00:00:08]} c6 {[%clk 00:05:30]} {[%emt 00:00:48]} 26.
bxc6 {[%clk 00:10:20]} {[%emt 00:00:58]} Bxc6 {[%clk 00:05:34]} {[%emt
00:00:01]} 27. Rfc1 {[%clk 00:10:24]} {[%emt 00:00:02]} Be8 {[%clk 00:04:50]}
{[%emt 00:00:49]} 28. a5 {[%clk 00:10:12]} {[%emt 00:00:16]} g6 {[%clk
00:04:41]} {[%emt 00:00:14]} 29. Bc8 {[%clk 00:09:50]} {[%emt 00:00:28]} Bb5
{[%clk 00:04:25]} {[%emt 00:00:21]} 30. a6 {[%clk 00:09:44]} {[%emt 00:00:11]}
Kg7 {[%clk 00:04:14]} {[%emt 00:00:15]} 31. Bb7 {[%clk 00:09:39]} {[%emt
00:00:10]} Rbxb7 {[%clk 00:04:09]} {[%emt 00:00:11]} 32. axb7 {[%clk 00:09:43]}
{[%emt 00:00:01]} Rxb7 {[%clk 00:04:12]} {[%emt 00:00:02]} 33. Rab1 {[%clk
00:09:44]} {[%emt 00:00:04]} Bc6 {[%clk 00:04:07]} {[%emt 00:00:09]} 34. Rxb7
{[%clk 00:09:48]} {[%emt 00:00:02]} Bxb7 {[%clk 00:04:11]} {[%emt 00:00:01]} 35.
Kf1 {[%clk 00:09:50]} {[%emt 00:00:02]} Ba6+ {[%clk 00:04:11]} {[%emt
00:00:06]} 36. Ke1 {[%clk 00:09:54]} h5 {[%clk 00:04:09]} {[%emt 00:00:07]} 37.
Kd2 {[%clk 00:09:58]} {[%emt 00:00:01]} Kf6 {[%clk 00:04:09]} {[%emt 00:00:05]}
38. Ke3 {[%clk 00:10:02]} {[%emt 00:00:01]} Bd3 {[%clk 00:04:12]} {[%emt
00:00:03]} 39. h4 {[%clk 00:10:05]} {[%emt 00:00:02]} Kf5 {[%clk 00:04:04]}
{[%emt 00:00:12]} 40. f3 {[%clk 00:09:55]} {[%emt 00:00:15]} exf3 {[%clk
00:02:41]} {[%emt 00:01:28]} 41. Rc5+ {[%clk 00:09:53]} {[%emt 00:00:07]} Kg4
{[%clk 00:02:31]} {[%emt 00:00:15]} 42. gxf3+ {[%clk 00:09:57]} Kxh4 {[%clk
00:02:35]} 43. Kxd3 {[%clk 00:10:01]} {[%emt 00:00:02]} Kg3 {[%clk 00:02:35]}
{[%emt 00:00:05]} 44. Ke2 {[%clk 00:10:04]} {[%emt 00:00:02]} h4 {[%clk
00:02:38]} {[%emt 00:00:02]} 45. Rg5+ {[%clk 00:10:08]} {[%emt 00:00:01]} 1-0

[Event "Open NK Rapid 2025"]
[Site "Helmond, Netherlands"]
[Date "2025.05.03"]
[Round "7.15"]
[White "Vasylchenko, Maksym"]
[Black "Margaryan, Artur"]
[Result "1-0"]
[TimeControl "15+5"]
[WhiteFideId "34150617"]
[BlackFideId "13304348"]
[WhiteElo "1853"]
[BlackElo "2100"]

1. d4 {[%emt 00:00:23]} Nf6 {[%clk 00:14:41]} {[%emt 00:00:07]} 2. c4 {[%clk
00:15:07]} {[%emt 00:00:07]} g6 {[%clk 00:14:45]} {[%emt 00:00:01]} 3. Nf3
{[%clk 00:15:09]} {[%emt 00:00:03]} Bg7 {[%clk 00:14:49]} {[%emt 00:00:01]} 4.
e3 {[%clk 00:15:12]} {[%emt 00:00:03]} d6 {[%clk 00:14:47]} {[%emt 00:00:06]} 5.
Nc3 {[%clk 00:15:14]} {[%emt 00:00:03]} O-O {[%clk 00:14:41]} {[%emt 00:00:10]}
6. Be2 {[%clk 00:15:09]} {[%emt 00:00:11]} c6 {[%clk 00:14:26]} {[%emt
00:00:19]} 7. b4 {[%clk 00:14:37]} {[%emt 00:00:38]} a5 {[%clk 00:14:18]}
{[%emt 00:00:13]} 8. b5 {[%clk 00:14:27]} {[%emt 00:00:14]} Nbd7 {[%clk
00:14:10]} {[%emt 00:00:13]} 9. Bb2 {[%clk 00:14:22]} {[%emt 00:00:11]} Qc7
{[%clk 00:14:11]} {[%emt 00:00:04]} 10. Rc1 {[%clk 00:13:48]} {[%emt 00:00:39]}
Re8 {[%clk 00:13:53]} {[%emt 00:00:22]} 11. O-O {[%clk 00:13:50]} {[%emt
00:00:03]} e5 {[%clk 00:13:57]} {[%emt 00:00:01]} 12. dxe5 {[%clk 00:13:17]}
{[%emt 00:00:39]} dxe5 {[%clk 00:13:54]} {[%emt 00:00:07]} 13. Ba3 {[%clk
00:11:50]} {[%emt 00:01:33]} Bf8 {[%clk 00:13:30]} {[%emt 00:00:29]} 14. Qb3
{[%clk 00:11:22]} {[%emt 00:00:32]} Nc5 {[%clk 00:12:16]} {[%emt 00:01:20]} 15.
Bxc5 {[%clk 00:11:16]} {[%emt 00:00:11]} Bxc5 {[%clk 00:12:19]} {[%emt
00:00:02]} 16. Na4 {[%clk 00:11:18]} {[%emt 00:00:03]} Bf8 {[%clk 00:10:09]}
{[%emt 00:02:15]} 17. b6 {[%clk 00:10:46]} {[%emt 00:00:37]} Qe7 {[%clk
00:10:06]} {[%emt 00:00:07]} 18. c5 {[%clk 00:10:23]} {[%emt 00:00:29]} Be6
{[%clk 00:08:11]} {[%emt 00:02:00]} 19. Qb2 {[%clk 00:09:50]} {[%emt 00:00:38]}
e4 {[%clk 00:08:02]} {[%emt 00:00:13]} 20. Nd4 {[%clk 00:09:25]} {[%emt
00:00:31]} Bd5 {[%clk 00:08:03]} {[%emt 00:00:03]} 21. Rfd1 {[%clk 00:09:14]}
{[%emt 00:00:17]} Bg7 {[%clk 00:08:07]} {[%emt 00:00:01]} 22. Qc2 {[%clk
00:08:58]} {[%emt 00:00:21]} h5 {[%clk 00:08:07]} {[%emt 00:00:05]} 23. Nb3
{[%clk 00:08:23]} {[%emt 00:00:41]} Qe5 {[%clk 00:07:58]} {[%emt 00:00:14]} 24.
Nc3 {[%clk 00:08:11]} {[%emt 00:00:16]} Be6 {[%clk 00:07:25]} {[%emt 00:00:38]}
25. Rd6 {[%clk 00:08:00]} {[%emt 00:00:16]} Bf8 {[%clk 00:06:36]} {[%emt
00:00:54]} 26. Rd4 {[%clk 00:05:38]} {[%emt 00:02:27]} Bf5 {[%clk 00:05:54]}
{[%emt 00:00:47]} 27. Na4 {[%clk 00:05:07]} {[%emt 00:00:36]} Ng4 {[%clk
00:05:34]} {[%emt 00:00:25]} 28. Bxg4 {[%clk 00:04:53]} {[%emt 00:00:19]} hxg4
{[%clk 00:05:37]} 29. Nd2 {[%clk 00:04:43]} {[%emt 00:00:16]} Qf6 {[%clk
00:03:43]} {[%emt 00:01:59]} 30. Nc4 {[%clk 00:04:35]} {[%emt 00:00:13]} Bg7
{[%clk 00:03:02]} {[%emt 00:00:46]} 31. Nd6 {[%clk 00:03:46]} {[%emt 00:00:54]}
Re7 {[%clk 00:03:06]} 32. Rcd1 {[%clk 00:03:34]} {[%emt 00:00:19]} Qh4 {[%clk
00:03:08]} {[%emt 00:00:03]} 33. Nxf5 {[%clk 00:03:23]} {[%emt 00:00:15]} gxf5
{[%clk 00:03:11]} {[%emt 00:00:02]} 34. Rd8+ {[%clk 00:03:25]} {[%emt
00:00:04]} Rxd8 {[%clk 00:02:20]} {[%emt 00:00:55]} 35. Rxd8+ {[%clk 00:03:28]}
{[%emt 00:00:02]} Kh7 {[%clk 00:02:24]} 36. Qd2 {[%clk 00:02:47]} {[%emt
00:00:46]} Re6 {[%clk 00:02:18]} {[%emt 00:00:11]} 37. Rd7 {[%clk 00:02:43]}
{[%emt 00:00:09]} Qf6 {[%clk 00:01:10]} {[%emt 00:01:13]} 38. Qd1 {[%clk
00:01:01]} {[%emt 00:01:47]} Re7 {[%clk 00:01:09]} {[%emt 00:00:06]} 39. Rxe7
{[%clk 00:01:00]} {[%emt 00:00:05]} Qxe7 {[%clk 00:01:12]} {[%emt 00:00:03]} 40.
Qd6 {[%clk 00:01:03]} {[%emt 00:00:01]} Bf6 {[%clk 00:01:09]} {[%emt 00:00:09]}
41. Kf1 {[%clk 00:00:52]} {[%emt 00:00:16]} Kg7 {[%clk 00:01:12]} {[%emt
00:00:02]} 42. Ke2 {[%clk 00:00:56]} Qe6 {[%clk 00:01:00]} {[%emt 00:00:18]} 43.
Qxe6 {[%clk 00:00:50]} {[%emt 00:00:10]} fxe6 {[%clk 00:01:04]} {[%emt
00:00:01]} 44. Kd2 {[%clk 00:00:53]} {[%emt 00:00:02]} Kf7 {[%clk 00:00:50]}
{[%emt 00:00:19]} 45. Nc3 {[%clk 00:00:57]} {[%emt 00:00:02]} Be7 {[%clk
00:00:42]} {[%emt 00:00:13]} 46. Na4 {[%clk 00:00:59]} {[%emt 00:00:02]} Kf6
{[%clk 00:00:46]} {[%emt 00:00:01]} 47. Kc3 {[%clk 00:01:02]} {[%emt 00:00:03]}
Ke5 {[%clk 00:00:46]} {[%emt 00:00:04]} 48. Kc4 {[%clk 00:01:05]} {[%emt
00:00:02]} Bh4 {[%clk 00:00:36]} {[%emt 00:00:15]} 49. g3 {[%clk 00:01:08]}
{[%emt 00:00:02]} Be7 {[%clk 00:00:38]} {[%emt 00:00:03]} 50. Nc3 {[%clk
00:01:08]} {[%emt 00:00:06]} Kf6 {[%clk 00:00:29]} {[%emt 00:00:14]} 51. Ne2
{[%clk 00:01:06]} {[%emt 00:00:07]} e5 {[%clk 00:00:30]} {[%emt 00:00:03]} 52.
Nc1 {[%clk 00:01:08]} {[%emt 00:00:03]} Ke6 {[%clk 00:00:31]} {[%emt 00:00:04]}
53. Nb3 {[%clk 00:01:10]} {[%emt 00:00:04]} Kd7 {[%clk 00:00:24]} {[%emt
00:00:11]} 54. Nxa5 {[%clk 00:01:13]} {[%emt 00:00:02]} Kc8 {[%clk 00:00:29]}
55. Nb3 {[%clk 00:01:15]} {[%emt 00:00:04]} Bg5 {[%clk 00:00:29]} {[%emt
00:00:04]} 56. Nd2 {[%clk 00:01:12]} {[%emt 00:00:08]} Be7 {[%clk 00:00:34]} 57.
a4 {[%clk 00:01:16]} {[%emt 00:00:02]} Bg5 {[%clk 00:00:38]} 58. a5 {[%clk
00:01:18]} {[%emt 00:00:03]} Be7 {[%clk 00:00:42]} 59. Nb3 {[%clk 00:01:07]}
{[%emt 00:00:15]} Bg5 {[%clk 00:00:47]} 60. Nd2 {[%clk 00:00:56]} {[%emt
00:00:16]} Be7 {[%clk 00:00:51]} 61. Nb1 {[%clk 00:00:57]} {[%emt 00:00:04]}
Bg5 {[%clk 00:00:55]} 62. Na3 {[%clk 00:00:58]} {[%emt 00:00:05]} f4 {[%clk
00:00:50]} {[%emt 00:00:10]} 63. gxf4 {[%clk 00:00:56]} {[%emt 00:00:07]} exf4
{[%clk 00:00:54]} 64. Kd4 {[%clk 00:01:00]} {[%emt 00:00:01]} f3 {[%clk
00:00:20]} {[%emt 00:00:39]} 65. Kxe4 {[%clk 00:01:02]} {[%emt 00:00:03]} Bh4
{[%clk 00:00:24]} 66. Nc4 {[%clk 00:00:58]} {[%emt 00:00:09]} Bxf2 {[%clk
00:00:27]} {[%emt 00:00:02]} 67. Kf4 {[%clk 00:01:01]} {[%emt 00:00:03]} Bg1
{[%clk 00:00:27]} {[%emt 00:00:05]} 68. Kxg4 {[%clk 00:01:03]} {[%emt
00:00:02]} f2 {[%clk 00:00:28]} {[%emt 00:00:04]} 69. Nd2 {[%clk 00:01:06]}
{[%emt 00:00:02]} Bxh2 {[%clk 00:00:32]} {[%emt 00:00:01]} 70. Kf3 {[%clk
00:01:09]} {[%emt 00:00:02]} Bg1 {[%clk 00:00:31]} {[%emt 00:00:07]} 71. Nf1
{[%clk 00:01:05]} {[%emt 00:00:09]} Kd8 {[%clk 00:00:33]} {[%emt 00:00:03]} 72.
Ke4 {[%clk 00:01:04]} {[%emt 00:00:06]} Kc8 {[%clk 00:00:36]} {[%emt 00:00:02]}
73. Kf5 {[%clk 00:01:04]} {[%emt 00:00:06]} Kd7 {[%clk 00:00:39]} {[%emt
00:00:02]} 74. e4 {[%clk 00:01:07]} {[%emt 00:00:01]} Ke7 {[%clk 00:00:37]}
{[%emt 00:00:07]} 75. e5 {[%clk 00:01:07]} {[%emt 00:00:05]} Kd7 {[%clk
00:00:41]} 76. Kf6 {[%clk 00:01:08]} {[%emt 00:00:04]} Ke8 {[%emt 00:00:09]}
1-0

[Event "Open NK Rapid 2025"]
[Site "Helmond, Netherlands"]
[Date "2025.05.03"]
[Round "7.17"]
[White "Meulmeester, Luuk"]
[Black "Kazarjan, Gachatur"]
[Result "0-1"]
[TimeControl "15+5"]
[WhiteFideId "40111776"]
[BlackFideId "1068750"]
[WhiteElo "1929"]
[BlackElo "2155"]

1. d4 {[%clk 00:15:06]} {[%emt 00:00:03]} d5 {[%clk 00:13:24]} {[%emt
00:01:46]} 2. c4 {[%clk 00:15:09]} {[%emt 00:00:02]} e6 {[%clk 00:13:28]}
{[%emt 00:00:02]} 3. cxd5 {[%clk 00:15:07]} {[%emt 00:00:06]} exd5 {[%clk
00:13:31]} {[%emt 00:00:03]} 4. Nc3 {[%clk 00:15:10]} {[%emt 00:00:02]} c5
{[%clk 00:13:35]} 5. Nf3 {[%clk 00:15:09]} {[%emt 00:00:06]} Nf6 {[%clk
00:13:38]} {[%emt 00:00:01]} 6. g3 {[%clk 00:15:12]} {[%emt 00:00:02]} Nc6
{[%clk 00:13:42]} {[%emt 00:00:02]} 7. Bg2 {[%clk 00:15:16]} Be7 {[%clk
00:13:45]} {[%emt 00:00:02]} 8. O-O {[%clk 00:15:18]} {[%emt 00:00:02]} O-O
{[%clk 00:13:48]} {[%emt 00:00:02]} 9. dxc5 {[%clk 00:14:44]} {[%emt 00:00:40]}
d4 {[%clk 00:13:46]} {[%emt 00:00:07]} 10. Na4 {[%clk 00:14:35]} {[%emt
00:00:14]} Bf5 {[%clk 00:13:49]} {[%emt 00:00:01]} 11. Bd2 {[%clk 00:13:52]}
{[%emt 00:00:49]} b5 {[%clk 00:13:25]} {[%emt 00:00:29]} 12. cxb6 {[%clk
00:13:48]} {[%emt 00:00:08]} axb6 {[%clk 00:13:28]} {[%emt 00:00:02]} 13. Rc1
{[%clk 00:12:59]} {[%emt 00:00:54]} Be4 {[%clk 00:13:22]} {[%emt 00:00:12]} 14.
b3 {[%clk 00:12:13]} {[%emt 00:00:51]} Ba3 {[%clk 00:13:03]} {[%emt 00:00:24]}
15. Rxc6 {[%clk 00:10:38]} {[%emt 00:01:39]} Bxc6 {[%clk 00:13:05]} {[%emt
00:00:04]} 16. Qa1 {[%clk 00:08:59]} {[%emt 00:01:43]} Bxa4 {[%clk 00:12:41]}
{[%emt 00:00:29]} 17. bxa4 {[%clk 00:09:03]} Rxa4 {[%clk 00:12:45]} {[%emt
00:00:02]} 18. Rd1 {[%clk 00:08:27]} {[%emt 00:00:40]} Ne4 {[%clk 00:12:19]}
{[%emt 00:00:31]} 19. Be1 {[%clk 00:05:27]} {[%emt 00:03:05]} Bc5 {[%clk
00:11:10]} {[%emt 00:01:15]} 20. e3 {[%clk 00:04:44]} {[%emt 00:00:48]} d3
{[%clk 00:10:38]} {[%emt 00:00:37]} 21. Ne5 {[%clk 00:04:21]} {[%emt 00:00:28]}
d2 {[%clk 00:10:29]} {[%emt 00:00:14]} 22. Bxd2 {[%clk 00:03:40]} {[%emt
00:00:46]} Nxd2 {[%clk 00:10:30]} {[%emt 00:00:04]} 23. Qb2 {[%clk 00:02:29]}
{[%emt 00:01:16]} Nc4 {[%clk 00:08:50]} {[%emt 00:01:45]} 24. Qb3 {[%clk
00:02:31]} {[%emt 00:00:03]} Rb4 {[%clk 00:07:43]} {[%emt 00:01:11]} 25. Rxd8
{[%clk 00:02:25]} {[%emt 00:00:11]} Rxd8 {[%clk 00:07:46]} {[%emt 00:00:03]} 26.
Qxb4 {[%clk 00:01:35]} {[%emt 00:00:55]} Bxb4 {[%clk 00:07:45]} {[%emt
00:00:05]} 27. Nxc4 {[%clk 00:01:39]} {[%emt 00:00:02]} Bc5 {[%clk 00:07:45]}
{[%emt 00:00:05]} 28. Bf3 {[%clk 00:01:21]} {[%emt 00:00:22]} b5 {[%clk
00:07:39]} {[%emt 00:00:12]} 29. Ne5 {[%clk 00:01:08]} {[%emt 00:00:17]} Rd2
{[%clk 00:07:32]} {[%emt 00:00:12]} 30. Bc6 {[%clk 00:00:50]} {[%emt 00:00:23]}
b4 {[%clk 00:07:14]} {[%emt 00:00:24]} 31. Kf1 {[%clk 00:00:17]} {[%emt
00:00:38]} Rxa2 {[%clk 00:06:57]} {[%emt 00:00:22]} 32. Bd5 {[%clk 00:00:20]}
{[%emt 00:00:01]} Ra7 {[%clk 00:07:01]} {[%emt 00:00:01]} 33. Ke2 {[%clk
00:00:18]} {[%emt 00:00:08]} Kf8 {[%clk 00:07:01]} {[%emt 00:00:05]} 34. Nd3
{[%clk 00:00:20]} {[%emt 00:00:03]} Bd6 {[%clk 00:07:03]} {[%emt 00:00:03]} 35.
e4 {[%clk 00:00:21]} {[%emt 00:00:04]} f6 {[%clk 00:06:55]} {[%emt 00:00:13]}
36. Ke3 {[%clk 00:00:23]} {[%emt 00:00:03]} Ra1 {[%clk 00:06:31]} {[%emt
00:00:28]} 37. f4 {[%clk 00:00:23]} {[%emt 00:00:06]} Rb1 {[%clk 00:06:19]}
{[%emt 00:00:17]} 38. Kd4 {[%clk 00:00:22]} {[%emt 00:00:05]} Bc7 {[%clk
00:05:49]} {[%emt 00:00:35]} 39. e5 {[%clk 00:00:15]} {[%emt 00:00:12]} fxe5+
{[%clk 00:05:48]} {[%emt 00:00:07]} 40. fxe5 {[%clk 00:00:18]} {[%emt
00:00:01]} b3 {[%clk 00:05:51]} {[%emt 00:00:03]} 41. Ke3 {[%clk 00:00:08]}
{[%emt 00:00:15]} b2 {[%emt 00:00:17]} 0-1

[Event "Open NK Rapid 2025"]
[Site "Helmond, Netherlands"]
[Date "2025.05.03"]
[Round "7.18"]
[White "Chua, Ethan"]
[Black "Kriens, Hans"]
[Result "1-0"]
[TimeControl "15+5"]
[WhiteFideId "1089250"]
[BlackFideId "1093665"]
[WhiteElo "2069"]
[BlackElo "1878"]

1. e4 {[%clk 00:15:08]} {[%emt 00:00:01]} c5 {[%clk 00:15:06]} {[%emt
00:00:04]} 2. Nf3 {[%clk 00:15:03]} {[%emt 00:00:10]} a6 {[%clk 00:15:06]}
{[%emt 00:00:05]} 3. d4 {[%clk 00:15:06]} {[%emt 00:00:03]} cxd4 {[%clk
00:15:08]} {[%emt 00:00:02]} 4. Nxd4 {[%clk 00:15:09]} {[%emt 00:00:02]} Nc6
{[%clk 00:15:12]} {[%emt 00:00:01]} 5. Nc3 {[%clk 00:15:01]} {[%emt 00:00:13]}
e5 {[%clk 00:15:14]} {[%emt 00:00:03]} 6. Nf5 {[%clk 00:14:51]} {[%emt
00:00:15]} Nf6 {[%clk 00:14:18]} {[%emt 00:01:01]} 7. Nd6+ {[%clk 00:14:05]}
{[%emt 00:00:51]} Bxd6 {[%clk 00:14:18]} {[%emt 00:00:05]} 8. Qxd6 {[%clk
00:14:08]} {[%emt 00:00:02]} Qe7 {[%clk 00:14:21]} {[%emt 00:00:03]} 9. Qd1
{[%clk 00:14:10]} {[%emt 00:00:02]} d6 {[%clk 00:13:59]} {[%emt 00:00:27]} 10.
Bg5 {[%clk 00:14:09]} {[%emt 00:00:05]} Be6 {[%clk 00:14:01]} {[%emt 00:00:04]}
11. Nd5 {[%clk 00:13:39]} {[%emt 00:00:35]} Bxd5 {[%clk 00:13:49]} {[%emt
00:00:18]} 12. exd5 {[%clk 00:13:41]} {[%emt 00:00:02]} Nb8 {[%clk 00:13:37]}
{[%emt 00:00:17]} 13. Be2 {[%clk 00:13:36]} {[%emt 00:00:10]} Nbd7 {[%clk
00:13:37]} {[%emt 00:00:05]} 14. O-O {[%clk 00:13:38]} {[%emt 00:00:03]} O-O
{[%clk 00:13:39]} {[%emt 00:00:03]} 15. c4 {[%clk 00:13:24]} {[%emt 00:00:20]}
Nc5 {[%clk 00:12:41]} {[%emt 00:01:03]} 16. Rc1 {[%clk 00:13:15]} {[%emt
00:00:13]} Rac8 {[%clk 00:12:40]} {[%emt 00:00:07]} 17. b4 {[%clk 00:13:12]}
{[%emt 00:00:07]} Nce4 {[%clk 00:12:42]} {[%emt 00:00:03]} 18. Be3 {[%clk
00:13:15]} {[%emt 00:00:01]} Nd7 {[%clk 00:12:33]} {[%emt 00:00:15]} 19. f3
{[%clk 00:13:03]} {[%emt 00:00:17]} Nef6 {[%clk 00:12:36]} {[%emt 00:00:02]} 20.
c5 {[%clk 00:12:36]} {[%emt 00:00:32]} e4 {[%clk 00:12:17]} {[%emt 00:00:23]}
21. f4 {[%clk 00:12:31]} {[%emt 00:00:11]} Rfd8 {[%clk 00:11:32]} {[%emt
00:00:51]} 22. c6 {[%clk 00:12:26]} {[%emt 00:00:09]} bxc6 {[%clk 00:11:05]}
{[%emt 00:00:32]} 23. dxc6 {[%clk 00:11:57]} {[%emt 00:00:34]} Nb8 {[%clk
00:10:46]} {[%emt 00:00:25]} 24. Bb6 {[%clk 00:11:15]} {[%emt 00:00:46]} Nxc6
{[%clk 00:10:12]} {[%emt 00:00:39]} 25. Bxd8 {[%clk 00:11:17]} {[%emt
00:00:03]} Qxd8 {[%clk 00:10:15]} {[%emt 00:00:02]} 26. Kh1 {[%clk 00:10:58]}
{[%emt 00:00:23]} Qb6 {[%clk 00:10:02]} {[%emt 00:00:19]} 27. Qxd6 {[%clk
00:10:49]} {[%emt 00:00:15]} Ne8 {[%clk 00:07:03]} {[%emt 00:03:04]} 28. Qd7
{[%clk 00:10:36]} {[%emt 00:00:16]} Nf6 {[%emt 00:00:17]} 1-0